[Event "*** SCC Grand Prix: Titled Tuesday Blitz"]
[Site "Chess.com"]
[Date "2020.06.09"]
[Round "1"]
[White "MartinMatthiesen"]
[Black "anesar92"]
[Result "0-1"]
[WhiteElo "2353"]
[BlackElo "2684"]
[TimeControl "180+1"]
[EndTime "9:05:57 PDT"]
[Termination "anesar92 won on time"]

1. d4 {[%clk 0:03:00.2]} 1... Nf6 {[%clk 0:02:59.9]} 2. c4 {[%clk 0:02:59.5]}
2... e6 {[%clk 0:03:00.3]} 3. Nf3 {[%clk 0:02:58.8]} 3... Bb4+ {[%clk
0:03:00.4]} 4. Bd2 {[%clk 0:02:58.3]} 4... Be7 {[%clk 0:03:00.4]} 5. Nc3 {[%clk
0:02:54.6]} 5... O-O {[%clk 0:02:59.4]} 6. e4 {[%clk 0:02:52.8]} 6... d5 {[%clk
0:02:59]} 7. e5 {[%clk 0:02:48]} 7... Ne4 {[%clk 0:02:59.1]} 8. Bd3 {[%clk
0:02:46.4]} 8... Nxd2 {[%clk 0:02:54.7]} 9. Qxd2 {[%clk 0:02:46]} 9... dxc4
{[%clk 0:02:54.6]} 10. Bxc4 {[%clk 0:02:45.7]} 10... Nd7 {[%clk 0:02:45.7]} 11.
Bb3 {[%clk 0:02:09.3]} 11... Nb6 {[%clk 0:02:43.1]} 12. Qe3 {[%clk 0:01:53.3]}
12... Bd7 {[%clk 0:02:40.7]} 13. O-O {[%clk 0:01:51.6]} 13... Bc6 {[%clk
0:02:40.7]} 14. Rfd1 {[%clk 0:01:48.5]} 14... Qd7 {[%clk 0:02:40.8]} 15. Bc2
{[%clk 0:01:39]} 15... Rad8 {[%clk 0:02:38.1]} 16. Ng5 {[%clk 0:01:32.7]} 16...
h6 {[%clk 0:02:32.3]} 17. Nge4 {[%clk 0:01:31.3]} 17... Kh8 {[%clk 0:02:19.9]}
18. Qh3 {[%clk 0:01:03.7]} 18... Nd5 {[%clk 0:02:13.6]} 19. a3 {[%clk
0:00:30.1]} 19... b6 {[%clk 0:02:08.9]} 20. Qd3 {[%clk 0:00:24.2]} 20... g6
{[%clk 0:02:05]} 21. h4 {[%clk 0:00:18.5]} 21... Kg7 {[%clk 0:01:56.4]} 22. h5
{[%clk 0:00:18.5]} 22... Nf4 {[%clk 0:01:56.3]} 23. Qe3 {[%clk 0:00:11.7]} 23...
g5 {[%clk 0:01:46.9]} 24. Nf6 {[%clk 0:00:03.5]} 24... Bxf6 {[%clk 0:01:34.9]}
25. exf6+ {[%clk 0:00:03.5]} 25... Kxf6 {[%clk 0:01:35.8]} 26. Qe5+ {[%clk
0:00:03.4]} 26... Ke7 {[%clk 0:01:36.1]} 27. d5 {[%clk 0:00:03.4]} 27... Bxd5
{[%clk 0:01:30.3]} 28. Be4 {[%clk 0:00:02.6]} 28... f6 {[%clk 0:01:26.6]} 29.
Nxd5+ {[%clk 0:00:02.2]} 29... Nxd5 {[%clk 0:01:25.2]} 30. Qd4 {[%clk
0:00:01.8]} 30... c5 {[%clk 0:01:20.6]} 0-1

[Event "*** SCC Grand Prix: Titled Tuesday Blitz"]
[Site "Chess.com"]
[Date "2020.06.09"]
[Round "1"]
[White "Fins0905"]
[Black "albano87"]
[Result "1-0"]
[WhiteElo "2654"]
[BlackElo "2334"]
[TimeControl "180+1"]
[EndTime "9:05:58 PDT"]
[Termination "Fins0905 won by resignation"]

1. d4 {[%clk 0:02:57.4]} 1... d5 {[%clk 0:02:59.1]} 2. c4 {[%clk 0:02:54]} 2...
e6 {[%clk 0:02:59.2]} 3. Nc3 {[%clk 0:02:53.2]} 3... Nf6 {[%clk 0:02:58.6]} 4.
cxd5 {[%clk 0:02:52.1]} 4... exd5 {[%clk 0:02:58.6]} 5. Bg5 {[%clk 0:02:49.3]}
5... Be7 {[%clk 0:02:58.7]} 6. e3 {[%clk 0:02:48]} 6... Nbd7 {[%clk 0:02:56]} 7.
Bd3 {[%clk 0:02:46.2]} 7... O-O {[%clk 0:02:55.9]} 8. Nf3 {[%clk 0:02:43.1]}
8... b6 {[%clk 0:02:55.4]} 9. O-O {[%clk 0:02:41.7]} 9... Bb7 {[%clk 0:02:55.5]}
10. Rc1 {[%clk 0:02:39.3]} 10... c5 {[%clk 0:02:55.5]} 11. Qe2 {[%clk
0:02:36.5]} 11... a6 {[%clk 0:02:54.4]} 12. dxc5 {[%clk 0:02:32.3]} 12... bxc5
{[%clk 0:02:53.9]} 13. Rfd1 {[%clk 0:02:31.5]} 13... Qb6 {[%clk 0:02:50.8]} 14.
b3 {[%clk 0:02:25]} 14... Qe6 {[%clk 0:02:44]} 15. h3 {[%clk 0:02:18.8]} 15...
h6 {[%clk 0:02:41.2]} 16. Bh4 {[%clk 0:02:14.9]} 16... Rac8 {[%clk 0:02:39.5]}
17. Na4 {[%clk 0:02:11.2]} 17... Rfd8 {[%clk 0:02:37.1]} 18. Qe1 {[%clk
0:01:58.1]} 18... Ne4 {[%clk 0:02:32.1]} 19. Bxe7 {[%clk 0:01:57]} 19... Qxe7
{[%clk 0:02:31.7]} 20. Qa5 {[%clk 0:01:42.5]} 20... Ndf6 {[%clk 0:02:12.4]} 21.
Bf1 {[%clk 0:01:23.4]} 21... Re8 {[%clk 0:02:08.7]} 22. Rc2 {[%clk 0:01:17.4]}
22... Red8 {[%clk 0:01:48.3]} 23. Rdc1 {[%clk 0:01:12.8]} 23... Nd7 {[%clk
0:01:36.2]} 24. Nd2 {[%clk 0:01:05.9]} 24... f5 {[%clk 0:01:25.1]} 25. Nxe4
{[%clk 0:00:56.9]} 25... fxe4 {[%clk 0:01:26]} 26. Nxc5 {[%clk 0:00:49.4]} 26...
Nxc5 {[%clk 0:01:26]} 27. Rxc5 {[%clk 0:00:49.9]} 27... Rxc5 {[%clk 0:01:25.8]}
28. Qxc5 {[%clk 0:00:49.6]} 28... Qf7 {[%clk 0:01:24.9]} 29. Qc7 {[%clk
0:00:45.5]} 29... Rd7 {[%clk 0:01:24.7]} 30. Qe5 {[%clk 0:00:43.2]} 30... Re7
{[%clk 0:01:23]} 31. Qd4 {[%clk 0:00:42]} 31... Qe6 {[%clk 0:01:19]} 32. Be2
{[%clk 0:00:39]} 32... Rf7 {[%clk 0:01:18]} 33. Bg4 {[%clk 0:00:36.7]} 33... Qe8
{[%clk 0:01:13.8]} 34. Bh5 {[%clk 0:00:31.3]} 34... Qd7 {[%clk 0:01:06.5]} 35.
Bxf7+ {[%clk 0:00:30.9]} 1-0

[Event "*** SCC Grand Prix: Titled Tuesday Blitz"]
[Site "Chess.com"]
[Date "2020.06.09"]
[Round "1"]
[White "Susal_De_Silva"]
[Black "Khvicha_Supatashvili"]
[Result "1/2-1/2"]
[WhiteElo "2383"]
[BlackElo "2711"]
[TimeControl "180+1"]
[EndTime "9:06:05 PDT"]
[Termination "Game drawn by repetition"]

1. e4 {[%clk 0:03:00.9]} 1... c5 {[%clk 0:02:59.2]} 2. Nf3 {[%clk 0:03:00.7]}
2... Nc6 {[%clk 0:02:58.4]} 3. Bb5 {[%clk 0:03:00.8]} 3... g6 {[%clk 0:02:57.3]}
4. Bxc6 {[%clk 0:03:01.1]} 4... bxc6 {[%clk 0:02:56.7]} 5. O-O {[%clk
0:03:00.3]} 5... Bg7 {[%clk 0:02:55.8]} 6. c3 {[%clk 0:02:59.9]} 6... Nf6 {[%clk
0:02:53.8]} 7. Re1 {[%clk 0:02:57.8]} 7... O-O {[%clk 0:02:52.8]} 8. d4 {[%clk
0:02:52.7]} 8... cxd4 {[%clk 0:02:48.6]} 9. cxd4 {[%clk 0:02:53.4]} 9... d6
{[%clk 0:02:45.5]} 10. Nc3 {[%clk 0:02:51.6]} 10... Bb7 {[%clk 0:02:44]} 11. b3
{[%clk 0:02:42.4]} 11... c5 {[%clk 0:02:43.2]} 12. Bb2 {[%clk 0:02:35.8]} 12...
cxd4 {[%clk 0:02:41.2]} 13. Nxd4 {[%clk 0:02:34.7]} 13... Rc8 {[%clk 0:02:40.2]}
14. Qd2 {[%clk 0:02:22.6]} 14... Re8 {[%clk 0:02:32.2]} 15. f3 {[%clk
0:02:18.5]} 15... Qb6 {[%clk 0:02:28.2]} 16. Kh1 {[%clk 0:02:14.3]} 16... h5
{[%clk 0:02:26.9]} 17. Rac1 {[%clk 0:02:09.8]} 17... a6 {[%clk 0:02:15.4]} 18.
Na4 {[%clk 0:02:06.6]} 18... Qd8 {[%clk 0:02:05.8]} 19. Rxc8 {[%clk 0:02:01.7]}
19... Qxc8 {[%clk 0:02:03.5]} 20. Rc1 {[%clk 0:02:02.2]} 20... Qb8 {[%clk
0:01:59.7]} 21. Nc6 {[%clk 0:01:57.4]} 21... Bxc6 {[%clk 0:01:58.8]} 22. Rxc6
{[%clk 0:01:57.7]} 22... Rc8 {[%clk 0:01:56.3]} 23. Qc2 {[%clk 0:01:50.3]} 23...
Rxc6 {[%clk 0:01:54.7]} 24. Qxc6 {[%clk 0:01:50.8]} 24... Qb4 {[%clk 0:01:48.9]}
25. Qc3 {[%clk 0:01:42.5]} 25... Qb5 {[%clk 0:01:47.6]} 26. Qc4 {[%clk
0:01:37.6]} 26... Qxc4 {[%clk 0:01:46.8]} 27. bxc4 {[%clk 0:01:37.8]} 27... Nd7
{[%clk 0:01:45.8]} 28. Bxg7 {[%clk 0:01:34.8]} 28... Kxg7 {[%clk 0:01:46.1]} 29.
Kg1 {[%clk 0:01:35.4]} 29... Kf6 {[%clk 0:01:39.8]} 30. Kf2 {[%clk 0:01:32.1]}
30... Ne5 {[%clk 0:01:38.3]} 31. Nb2 {[%clk 0:01:28.8]} 31... g5 {[%clk
0:01:37.5]} 32. g3 {[%clk 0:01:28.1]} 32... Ke6 {[%clk 0:01:35.5]} 33. h3 {[%clk
0:01:21.4]} 33... f5 {[%clk 0:01:33.1]} 34. exf5+ {[%clk 0:01:19.7]} 34... Kxf5
{[%clk 0:01:33]} 35. Ke3 {[%clk 0:01:20.3]} 35... h4 {[%clk 0:01:24.8]} 36. g4+
{[%clk 0:01:17.6]} 36... Kf6 {[%clk 0:01:24.4]} 37. f4 {[%clk 0:01:05.8]} 37...
gxf4+ {[%clk 0:01:21.7]} 38. Kxf4 {[%clk 0:01:06.5]} 38... Ng6+ {[%clk
0:01:21.7]} 39. Ke3 {[%clk 0:01:06.1]} 39... Ne5 {[%clk 0:01:18.8]} 40. Ke4
{[%clk 0:00:59.1]} 40... e6 {[%clk 0:01:11.9]} 41. Kf4 {[%clk 0:00:54.6]} 41...
Ng6+ {[%clk 0:01:09.2]} 42. Ke4 {[%clk 0:00:54.6]} 42... Ne5 {[%clk 0:01:07.1]}
43. Kf4 {[%clk 0:00:53.9]} 43... Ng6+ {[%clk 0:01:06.6]} 44. Ke4 {[%clk
0:00:54.2]} 44... Ne5 {[%clk 0:00:57.3]} 1/2-1/2

[Event "*** SCC Grand Prix: Titled Tuesday Blitz"]
[Site "Chess.com"]
[Date "2020.06.09"]
[Round "1"]
[White "vanyakuba"]
[Black "Sychev_Klementy"]
[Result "0-1"]
[WhiteElo "2439"]
[BlackElo "2860"]
[TimeControl "180+1"]
[EndTime "9:06:06 PDT"]
[Termination "Sychev_Klementy won by resignation"]

1. e4 {[%clk 0:03:00.9]} 1... e5 {[%clk 0:02:59.5]} 2. Nf3 {[%clk 0:03:00.5]}
2... Nc6 {[%clk 0:02:58.9]} 3. Bb5 {[%clk 0:03:00.3]} 3... a6 {[%clk 0:02:58.6]}
4. Ba4 {[%clk 0:02:59.9]} 4... b5 {[%clk 0:02:52.7]} 5. Bb3 {[%clk 0:02:59.1]}
5... Na5 {[%clk 0:02:30.2]} 6. Bxf7+ {[%clk 0:02:37.2]} 6... Kxf7 {[%clk
0:02:29.8]} 7. Nxe5+ {[%clk 0:02:37.6]} 7... Ke7 {[%clk 0:02:23.9]} 8. d4 {[%clk
0:02:32.6]} 8... Nf6 {[%clk 0:02:20.5]} 9. Bg5 {[%clk 0:02:29.4]} 9... Qe8
{[%clk 0:02:17.6]} 10. Qd2 {[%clk 0:02:12.5]} 10... Nc6 {[%clk 0:01:39.2]} 11.
Nxc6+ {[%clk 0:02:07.6]} 11... dxc6 {[%clk 0:01:39.2]} 12. Nc3 {[%clk
0:00:58.3]} 12... Kf7 {[%clk 0:01:37.3]} 13. f3 {[%clk 0:00:58.3]} 13... Be7
{[%clk 0:01:34]} 14. O-O-O {[%clk 0:00:52]} 14... Rf8 {[%clk 0:01:30.1]} 15. d5
{[%clk 0:00:48.6]} 15... Kg8 {[%clk 0:01:15.8]} 16. dxc6 {[%clk 0:00:44.6]}
16... h6 {[%clk 0:01:07.8]} 17. Bf4 {[%clk 0:00:34.6]} 17... Qxc6 {[%clk
0:01:04.4]} 18. e5 {[%clk 0:00:21.2]} 18... b4 {[%clk 0:01:02]} 19. exf6 {[%clk
0:00:08.4]} 19... bxc3 {[%clk 0:01:00.7]} 20. fxe7 {[%clk 0:00:06.5]} 20...
cxd2+ {[%clk 0:01:00.1]} 21. Rxd2 {[%clk 0:00:06.9]} 21... Re8 {[%clk
0:01:00.1]} 22. Rd8 {[%clk 0:00:06.1]} 22... Bf5 {[%clk 0:00:59]} 0-1

[Event "*** SCC Grand Prix: Titled Tuesday Blitz"]
[Site "Chess.com"]
[Date "2020.06.09"]
[Round "1"]
[White "Lenyas66"]
[Black "HanSchut"]
[Result "1-0"]
[WhiteElo "2563"]
[BlackElo "2202"]
[TimeControl "180+1"]
[EndTime "9:06:07 PDT"]
[Termination "Lenyas66 won on time"]

1. e4 {[%clk 0:02:59.2]} 1... c5 {[%clk 0:02:59.8]} 2. Nf3 {[%clk 0:02:59.2]}
2... d6 {[%clk 0:03:00]} 3. Bb5+ {[%clk 0:02:58.9]} 3... Nd7 {[%clk 0:02:58.3]}
4. a4 {[%clk 0:02:58.7]} 4... a6 {[%clk 0:02:54.1]} 5. Be2 {[%clk 0:02:54.4]}
5... b6 {[%clk 0:02:47.2]} 6. Nc3 {[%clk 0:02:53.2]} 6... Bb7 {[%clk 0:02:47.4]}
7. d4 {[%clk 0:02:50.4]} 7... cxd4 {[%clk 0:02:42.7]} 8. Qxd4 {[%clk 0:02:50.2]}
8... Ngf6 {[%clk 0:02:38.4]} 9. O-O {[%clk 0:02:43]} 9... e5 {[%clk 0:02:08.6]}
10. Qe3 {[%clk 0:02:39.5]} 10... Be7 {[%clk 0:01:58.6]} 11. Nd2 {[%clk
0:02:38.7]} 11... O-O {[%clk 0:01:54.3]} 12. Rd1 {[%clk 0:02:37.9]} 12... d5
{[%clk 0:01:40.9]} 13. exd5 {[%clk 0:02:36.1]} 13... Bxd5 {[%clk 0:01:38.3]} 14.
Nxd5 {[%clk 0:02:33.9]} 14... Nxd5 {[%clk 0:01:38.6]} 15. Qf3 {[%clk 0:02:18.8]}
15... Nf4 {[%clk 0:01:24]} 16. Bf1 {[%clk 0:02:17.4]} 16... Qc7 {[%clk
0:01:13.7]} 17. Nc4 {[%clk 0:02:12.5]} 17... Ng6 {[%clk 0:00:57.9]} 18. Be3
{[%clk 0:02:04.5]} 18... Rad8 {[%clk 0:00:41.5]} 19. a5 {[%clk 0:01:58.2]} 19...
b5 {[%clk 0:00:37.4]} 20. Nb6 {[%clk 0:01:58]} 20... Nf6 {[%clk 0:00:26.9]} 21.
c4 {[%clk 0:01:51.3]} 21... bxc4 {[%clk 0:00:10.5]} 22. Nxc4 {[%clk 0:01:46.7]}
22... Bc5 {[%clk 0:00:08.6]} 23. Bg5 {[%clk 0:01:42.9]} 23... e4 {[%clk
0:00:04.2]} 24. Qf5 {[%clk 0:01:12.1]} 24... Ne7 {[%clk 0:00:01.8]} 25. Qh3
{[%clk 0:01:09.6]} 25... Ned5 {[%clk 0:00:01.4]} 26. Rac1 {[%clk 0:01:04]} 26...
h6 {[%clk 0:00:01]} 27. Be3 {[%clk 0:00:59]} 1-0

[Event "*** SCC Grand Prix: Titled Tuesday Blitz"]
[Site "Chess.com"]
[Date "2020.06.09"]
[Round "1"]
[White "Gahan-MG"]
[Black "Panterov"]
[Result "1-0"]
[WhiteElo "2533"]
[BlackElo "2140"]
[TimeControl "180+1"]
[EndTime "9:06:09 PDT"]
[Termination "Gahan-MG won on time"]

1. e4 {[%clk 0:02:58.1]} 1... e5 {[%clk 0:02:03.9]} 2. Nf3 {[%clk 0:02:57.2]}
2... Nf6 {[%clk 0:02:03]} 3. Nc3 {[%clk 0:02:56]} 3... Bb4 {[%clk 0:02:02]} 4.
Nxe5 {[%clk 0:02:50.7]} 4... Qe7 {[%clk 0:01:56.7]} 5. Nf3 {[%clk 0:02:50.1]}
5... Bxc3 {[%clk 0:01:48.6]} 6. dxc3 {[%clk 0:02:49]} 6... Nxe4 {[%clk
0:01:48.5]} 7. Be2 {[%clk 0:02:48.5]} 7... O-O {[%clk 0:01:48.5]} 8. O-O {[%clk
0:02:47.1]} 8... d6 {[%clk 0:01:45.3]} 9. Re1 {[%clk 0:02:43.3]} 9... Be6 {[%clk
0:01:41.3]} 10. Bd3 {[%clk 0:02:40.3]} 10... Nc5 {[%clk 0:01:39.8]} 11. Bxh7+
{[%clk 0:02:33.9]} 11... Kxh7 {[%clk 0:01:34.7]} 12. Ng5+ {[%clk 0:02:33.7]}
12... Kg6 {[%clk 0:01:21]} 13. b4 {[%clk 0:02:32.8]} 13... f6 {[%clk 0:01:01.4]}
14. Nf3 {[%clk 0:02:05.6]} 14... Ncd7 {[%clk 0:00:59.6]} 15. Nd4 {[%clk
0:01:58.8]} 15... Ne5 {[%clk 0:00:56]} 16. f4 {[%clk 0:01:58.6]} 16... Bg4
{[%clk 0:00:45.9]} 17. Qxg4+ {[%clk 0:01:57.1]} 17... Nxg4 {[%clk 0:00:45.3]}
18. Rxe7 {[%clk 0:01:57.7]} 18... Nc6 {[%clk 0:00:44.6]} 19. Rxc7 {[%clk
0:01:53.2]} 19... Rac8 {[%clk 0:00:33.6]} 20. f5+ {[%clk 0:01:51.6]} 20... Kh7
{[%clk 0:00:25.4]} 21. Rxc8 {[%clk 0:01:49.8]} 21... Rxc8 {[%clk 0:00:24.7]} 22.
Nb5 {[%clk 0:01:47.4]} 22... a6 {[%clk 0:00:20.3]} 23. Nxd6 {[%clk 0:01:46.9]}
23... Rd8 {[%clk 0:00:19.9]} 24. Bf4 {[%clk 0:01:47.1]} 24... Nce5 {[%clk
0:00:18.8]} 25. h3 {[%clk 0:01:41.6]} 25... Rxd6 {[%clk 0:00:18.2]} 26. hxg4
{[%clk 0:01:41.9]} 26... Rc6 {[%clk 0:00:17.6]} 27. g5 {[%clk 0:01:29.8]} 27...
Rxc3 {[%clk 0:00:16.5]} 28. g6+ {[%clk 0:01:29.9]} 28... Kg8 {[%clk 0:00:16.2]}
29. Rd1 {[%clk 0:01:29.2]} 29... Kf8 {[%clk 0:00:16.4]} 30. Rd8+ {[%clk
0:01:25.9]} 30... Ke7 {[%clk 0:00:15.5]} 31. Rg8 {[%clk 0:01:26]} 31... Ng4
{[%clk 0:00:09.5]} 32. Rxg7+ {[%clk 0:01:25.8]} 32... Ke8 {[%clk 0:00:09.9]} 33.
Rc7 {[%clk 0:01:20.7]} 33... Ra3 {[%clk 0:00:07.1]} 34. g7 {[%clk 0:01:18.3]}
1-0

[Event "*** SCC Grand Prix: Titled Tuesday Blitz"]
[Site "Chess.com"]
[Date "2020.06.09"]
[Round "1"]
[White "ajian"]
[Black "LyonBeast"]
[Result "0-1"]
[WhiteElo "2456"]
[BlackElo "2950"]
[TimeControl "180+1"]
[EndTime "9:06:14 PDT"]
[Termination "LyonBeast won by resignation"]

1. d4 {[%clk 0:03:00.9]} 1... Nf6 {[%clk 0:02:59.5]} 2. c4 {[%clk 0:02:57.4]}
2... e6 {[%clk 0:02:59.7]} 3. Nc3 {[%clk 0:02:57.5]} 3... Bb4 {[%clk 0:02:59.2]}
4. Qc2 {[%clk 0:02:57.8]} 4... d5 {[%clk 0:02:58.8]} 5. cxd5 {[%clk 0:02:57.5]}
5... Qxd5 {[%clk 0:02:59.5]} 6. e3 {[%clk 0:02:56.3]} 6... c5 {[%clk 0:02:56.6]}
7. Bd2 {[%clk 0:02:55.6]} 7... Bxc3 {[%clk 0:02:55.7]} 8. Bxc3 {[%clk
0:02:56.5]} 8... cxd4 {[%clk 0:02:54.1]} 9. Bxd4 {[%clk 0:02:57.4]} 9... Nc6
{[%clk 0:02:53.7]} 10. Bc3 {[%clk 0:02:57.8]} 10... O-O {[%clk 0:02:53.1]} 11.
Nf3 {[%clk 0:02:56.8]} 11... e5 {[%clk 0:02:51.9]} 12. Be2 {[%clk 0:02:54.9]}
12... Bg4 {[%clk 0:02:48.6]} 13. h3 {[%clk 0:02:53.9]} 13... Bh5 {[%clk
0:02:48.1]} 14. O-O {[%clk 0:02:52.6]} 14... Rac8 {[%clk 0:02:47.9]} 15. Rfd1
{[%clk 0:02:46.9]} 15... Qc5 {[%clk 0:02:47.8]} 16. Rac1 {[%clk 0:02:33.3]}
16... Qe7 {[%clk 0:02:46]} 17. Qa4 {[%clk 0:02:16.7]} 17... a6 {[%clk
0:02:39.3]} 18. a3 {[%clk 0:01:59.4]} 18... Rfd8 {[%clk 0:02:26.5]} 19. Qh4
{[%clk 0:01:38.3]} 19... Bg6 {[%clk 0:02:23.8]} 20. Qg3 {[%clk 0:01:27.4]} 20...
Ne4 {[%clk 0:02:23]} 21. Rxd8+ {[%clk 0:01:10.3]} 21... Rxd8 {[%clk 0:02:23.9]}
22. Qh4 {[%clk 0:01:10.4]} 22... Nxc3 {[%clk 0:02:17.4]} 23. Rxc3 {[%clk
0:00:48.5]} 23... Qxh4 {[%clk 0:02:15.7]} 24. Nxh4 {[%clk 0:00:49.4]} 24... Be4
{[%clk 0:02:15.7]} 25. Bf3 {[%clk 0:00:41]} 25... Bxf3 {[%clk 0:02:11.7]} 26.
Nxf3 {[%clk 0:00:41]} 26... Rd1+ {[%clk 0:02:11.7]} 27. Kh2 {[%clk 0:00:40.8]}
27... f6 {[%clk 0:02:12.6]} 28. Rc2 {[%clk 0:00:36.8]} 28... Kf7 {[%clk
0:02:10]} 29. Kg3 {[%clk 0:00:35.2]} 29... Ke6 {[%clk 0:02:09.5]} 30. Nd2 {[%clk
0:00:30.2]} 30... Ne7 {[%clk 0:02:05.6]} 31. Ne4 {[%clk 0:00:27.6]} 31... b6
{[%clk 0:02:01]} 32. Rd2 {[%clk 0:00:25.2]} 32... Rxd2 {[%clk 0:02:00.4]} 33.
Nxd2 {[%clk 0:00:25.6]} 33... Kd5 {[%clk 0:02:00.5]} 34. Kf3 {[%clk 0:00:23.7]}
34... Nc6 {[%clk 0:01:59.1]} 35. Ke2 {[%clk 0:00:22.3]} 35... e4 {[%clk
0:01:59.6]} 36. f3 {[%clk 0:00:21.9]} 36... f5 {[%clk 0:01:56.7]} 37. fxe4+
{[%clk 0:00:16.9]} 37... fxe4 {[%clk 0:01:57.6]} 38. Nb3 {[%clk 0:00:12]} 38...
a5 {[%clk 0:01:55.6]} 39. Nd2 {[%clk 0:00:11.8]} 39... Ne7 {[%clk 0:01:49.1]}
40. Kd1 {[%clk 0:00:10.4]} 40... Nf5 {[%clk 0:01:48.4]} 41. Ke2 {[%clk
0:00:08.7]} 41... Nd6 {[%clk 0:01:49]} 42. Kd1 {[%clk 0:00:08.1]} 42... a4
{[%clk 0:01:44.6]} 43. Ke2 {[%clk 0:00:06.6]} 43... b5 {[%clk 0:01:42.6]} 44.
Nb1 {[%clk 0:00:04.6]} 44... Kc4 {[%clk 0:01:42]} 45. Nc3 {[%clk 0:00:04.5]}
45... Kb3 {[%clk 0:01:42]} 46. Nd1 {[%clk 0:00:04]} 46... Kc2 {[%clk 0:01:42.2]}
47. g4 {[%clk 0:00:03.3]} 47... g5 {[%clk 0:01:41.7]} 48. Nf2 {[%clk 0:00:03.8]}
48... Kxb2 {[%clk 0:01:41.5]} 49. Nd1+ {[%clk 0:00:03.1]} 49... Kc2 {[%clk
0:01:40.1]} 50. Nc3 {[%clk 0:00:04]} 50... Kxc3 {[%clk 0:01:40.2]} 0-1

[Event "*** SCC Grand Prix: Titled Tuesday Blitz"]
[Site "Chess.com"]
[Date "2020.06.09"]
[Round "1"]
[White "BilguunSu"]
[Black "Vandros57"]
[Result "1-0"]
[WhiteElo "2591"]
[BlackElo "2250"]
[TimeControl "180+1"]
[EndTime "9:06:15 PDT"]
[Termination "BilguunSu won by resignation"]

1. e4 {[%clk 0:02:59.3]} 1... c5 {[%clk 0:02:58.6]} 2. Nf3 {[%clk 0:02:59.7]}
2... e6 {[%clk 0:02:58]} 3. d4 {[%clk 0:03:00.1]} 3... cxd4 {[%clk 0:02:57.6]}
4. Nxd4 {[%clk 0:03:01]} 4... Nf6 {[%clk 0:02:56.1]} 5. Nc3 {[%clk 0:03:01.3]}
5... Nc6 {[%clk 0:02:54.5]} 6. Nxc6 {[%clk 0:03:00.1]} 6... bxc6 {[%clk
0:02:52.9]} 7. Bd3 {[%clk 0:03:00.5]} 7... d5 {[%clk 0:02:48.4]} 8. O-O {[%clk
0:03:00.8]} 8... Be7 {[%clk 0:02:36.6]} 9. Qe2 {[%clk 0:03:01]} 9... O-O {[%clk
0:02:28]} 10. b3 {[%clk 0:03:00.1]} 10... a5 {[%clk 0:02:16.7]} 11. Bb2 {[%clk
0:02:57.1]} 11... Qb6 {[%clk 0:02:14]} 12. Na4 {[%clk 0:02:56.3]} 12... Qa7
{[%clk 0:02:10.2]} 13. c4 {[%clk 0:02:50.5]} 13... Ba6 {[%clk 0:02:05.8]} 14.
Rac1 {[%clk 0:02:24.8]} 14... dxe4 {[%clk 0:01:56.5]} 15. Bxe4 {[%clk
0:02:24.1]} 15... Nxe4 {[%clk 0:01:55.6]} 16. Qxe4 {[%clk 0:02:23.6]} 16... Rfd8
{[%clk 0:01:38.6]} 17. Qg4 {[%clk 0:02:11.5]} 17... Bf8 {[%clk 0:01:35.7]} 18.
Rfd1 {[%clk 0:02:10.5]} 18... Qe7 {[%clk 0:01:30.3]} 19. h4 {[%clk 0:02:04.4]}
19... h6 {[%clk 0:01:28.2]} 20. h5 {[%clk 0:02:00.3]} 20... Rxd1+ {[%clk
0:01:26]} 21. Rxd1 {[%clk 0:01:59]} 21... Rd8 {[%clk 0:01:24.8]} 22. Rd4 {[%clk
0:01:40.7]} 22... Bc8 {[%clk 0:01:14.9]} 23. Qd1 {[%clk 0:01:36.1]} 23... Rxd4
{[%clk 0:01:12.2]} 24. Qxd4 {[%clk 0:01:35.5]} 24... Qc7 {[%clk 0:01:03.5]} 25.
Qe5 {[%clk 0:01:30.9]} 25... Qxe5 {[%clk 0:01:02.2]} 26. Bxe5 {[%clk 0:01:30.1]}
26... f6 {[%clk 0:00:59]} 27. Bc3 {[%clk 0:01:29.9]} 27... Bb4 {[%clk
0:00:57.6]} 28. Bxb4 {[%clk 0:01:25.7]} 28... axb4 {[%clk 0:00:57]} 29. Nc5
{[%clk 0:01:25.1]} 29... e5 {[%clk 0:00:47.4]} 30. Nd3 {[%clk 0:01:23.2]} 30...
Bg4 {[%clk 0:00:46.6]} 31. Nxb4 {[%clk 0:01:22.9]} 31... Bd7 {[%clk 0:00:41.3]}
32. a4 {[%clk 0:01:21]} 32... c5 {[%clk 0:00:38.5]} 33. Na6 {[%clk 0:01:20.4]}
33... Kf7 {[%clk 0:00:31.5]} 34. Nxc5 {[%clk 0:01:20]} 34... Bc6 {[%clk
0:00:28.8]} 35. b4 {[%clk 0:01:20.4]} 35... Ke7 {[%clk 0:00:28.3]} 36. b5 {[%clk
0:01:20.3]} 36... Be8 {[%clk 0:00:27.4]} 37. a5 {[%clk 0:01:18.4]} 37... Kd6
{[%clk 0:00:26.4]} 38. a6 {[%clk 0:01:18.4]} 38... Kc7 {[%clk 0:00:11.2]} 39. a7
{[%clk 0:01:17.9]} 1-0

[Event "*** SCC Grand Prix: Titled Tuesday Blitz"]
[Site "Chess.com"]
[Date "2020.06.09"]
[Round "1"]
[White "VincentKeymer"]
[Black "2346PL"]
[Result "1-0"]
[WhiteElo "2763"]
[BlackElo "2405"]
[TimeControl "180+1"]
[EndTime "9:06:16 PDT"]
[Termination "VincentKeymer won by resignation"]

1. Nf3 {[%clk 0:03:00.8]} 1... d6 {[%clk 0:02:59.1]} 2. c4 {[%clk 0:03:00.9]}
2... f5 {[%clk 0:02:59.4]} 3. d4 {[%clk 0:03:00.4]} 3... Nf6 {[%clk 0:02:59.9]}
4. g3 {[%clk 0:03:00.9]} 4... g6 {[%clk 0:03:00.4]} 5. Bg2 {[%clk 0:03:01.5]}
5... Bg7 {[%clk 0:03:01.1]} 6. O-O {[%clk 0:03:02.1]} 6... O-O {[%clk
0:03:01.6]} 7. b3 {[%clk 0:03:02.5]} 7... e5 {[%clk 0:03:01.1]} 8. dxe5 {[%clk
0:02:55.9]} 8... Ng4 {[%clk 0:03:01.6]} 9. Nc3 {[%clk 0:02:51.8]} 9... Nxe5
{[%clk 0:03:01.1]} 10. Bb2 {[%clk 0:02:51.5]} 10... Nbc6 {[%clk 0:03:00]} 11. e3
{[%clk 0:02:49.9]} 11... Be6 {[%clk 0:02:54.1]} 12. Nd4 {[%clk 0:02:47.8]} 12...
Bd7 {[%clk 0:02:46.1]} 13. Nd5 {[%clk 0:02:44.1]} 13... Nxd4 {[%clk 0:02:39.4]}
14. exd4 {[%clk 0:02:45]} 14... Ng4 {[%clk 0:02:34.5]} 15. h3 {[%clk 0:02:38.8]}
15... Nh6 {[%clk 0:02:34.1]} 16. Nf4 {[%clk 0:02:36]} 16... c6 {[%clk 0:02:27]}
17. Re1 {[%clk 0:02:29.3]} 17... Re8 {[%clk 0:02:14.4]} 18. Qd2 {[%clk
0:02:28.8]} 18... Qf6 {[%clk 0:02:09.4]} 19. Nd3 {[%clk 0:02:22.6]} 19... Qf8
{[%clk 0:01:51.6]} 20. d5 {[%clk 0:02:22]} 20... Bxb2 {[%clk 0:01:32]} 21. Qxb2
{[%clk 0:02:22.9]} 21... Rxe1+ {[%clk 0:01:26.5]} 22. Rxe1 {[%clk 0:02:21.8]}
22... Re8 {[%clk 0:01:27.4]} 23. Rxe8 {[%clk 0:02:12.2]} 23... Bxe8 {[%clk
0:01:25.3]} 24. dxc6 {[%clk 0:02:08.4]} 24... Bxc6 {[%clk 0:01:22.8]} 25. Nb4
{[%clk 0:01:58.4]} 25... Bxg2 {[%clk 0:01:21.5]} 26. Kxg2 {[%clk 0:01:59.3]}
26... f4 {[%clk 0:01:16.9]} 27. Nd5 {[%clk 0:01:57.3]} 27... fxg3 {[%clk
0:00:57.1]} 28. fxg3 {[%clk 0:01:50.9]} 28... Nf5 {[%clk 0:00:32.6]} 29. Nf6+
{[%clk 0:01:43]} 29... Kf7 {[%clk 0:00:33]} 30. g4 {[%clk 0:01:28.6]} 30... Qe7
{[%clk 0:00:31]} 31. Nd5 {[%clk 0:01:21.4]} 31... Qe4+ {[%clk 0:00:30.3]} 32.
Kh2 {[%clk 0:01:07.8]} 32... Nd4 {[%clk 0:00:25.5]} 33. Qf2+ {[%clk 0:01:04.8]}
33... Qf3 {[%clk 0:00:16.8]} 34. Qxd4 {[%clk 0:01:00.7]} 34... Qe2+ {[%clk
0:00:14.3]} 35. Kg3 {[%clk 0:01:01]} 35... Qxa2 {[%clk 0:00:13.5]} 1-0